[Event "44th Chess Olympiad Open 2022"]
[Site "Chennai"]
[Date "2022.08.09"]
[Round "11.27"]
[White "Hossain, Enamul"]
[Black "Megaranto, Susanto"]
[Result "1/2-1/2"]
[ECO "C54"]
[WhiteElo "2377"]
[BlackElo "2529"]
[Annotator "RC"]
[PlyCount "230"]
[EventDate "2022.07.29"]
[EventType "team-tourn"]
[EventCountry "IND"]
[SourceTitle "playchess.com"]
[Source "ChessBase"]
[SourceQuality "1"]
[WhiteTeam "Bangladesh"]
[BlackTeam "Indonesia"]
[WhiteTeamCountry "BAN"]
[BlackTeamCountry "INA"]
[TimeControl "40/5400+30:1800+30"]

1. e4 {[%emt 0:00:09]} e5 {[%emt 0:00:24]} 2. Nf3 {[%emt 0:00:32]} Nc6 {[%emt 0:00:14]} 3. Bc4 {[%emt 0:00:45]} Nf6 {[%emt 0:01:11]} 4. d3 {[%emt 0:01:01]} Bc5 {[%emt 0:01:05]} 5. c3 {[%emt 0:01:33]} d6 {[%emt 0:00:56]} 6. O-O {[%emt 0:01:00]} Bb6 {[%emt 0:01:01]} 7. a4 {[%emt 0:01:09]} h6 {[%emt 0:03:03]} 8. Re1 {[%emt 0:01:11]} O-O {[%emt 0:01:44]} 9. h3 {[%emt 0:05:03]} a6 10. Nbd2 {[%emt 0:05:19]} Ne7 {[%emt 0:07:09]} 11. Ba2 {[%emt 0:07:04]} Ng6 {[%emt 0:01:24]} 12. d4 {[%emt 0:00:00]} c6 {[%emt 0:23:29]} 13. Nc4 {[%emt 0:10:19]} Bc7 {[%emt 0:00:00]} 14. d5 {[%emt 0:00:35]} cxd5 {[%emt 0:00:00]} 15. exd5 {[%emt 0:00:26]} b5 {[%emt 0:00:00]} 16. Ne3 {[%emt 0:15:44]} Bd7 {[%emt 0:00:00]} 17. axb5 {[%emt 0:04:23]} axb5 {[%emt 0:00:00]} 18. Nc2 {[%emt 0:00:23]} Bb6 {[%emt 0:00:00]} 19. Be3 {[%emt 0:02:06]} Bxe3 {[%emt 0:00:00]} 20. Rxe3 {[%emt 0:00:04]} Nf4 {[%emt 0:05:25]} 21. Nfe1 {[%emt 0:08:43]} Ra4 {[%emt 0:03:06]} 22. Nb4 {[%emt 0:06:39]} Bf5 {[%emt 0:03:51]} 23. Bb3 {[%emt 0:01:11]} Rxa1 {[%emt 0:07:10]} 24. Qxa1 {[%emt 0:01:30]} Qb6 {[%emt 0:00:57]} 25. Qd1 {[%emt 0:13:13]} Ra8 {[%emt 0:05:06]} 26. Bc2 {[%emt 0:05:48]} Bd7 {[%emt 0:09:07]} 27. Bb3 {[%emt 0:03:41]} Qc5 {[%emt 0:12:40]} 28. Ned3 {[%emt 0:00:11]} Nxd3 {[%emt 0:00:06]} 29. Nxd3 {[%emt 0:00:17]} Qa7 {[%emt 0:00:02]} 30. Re1 {[%emt 0:00:49]} Bf5 {[%emt 0:00:46]} 31. Nb4 {[%emt 0:00:37]} Qc5 {[%emt 0:00:09]} 32. Qf3 {[%emt 0:01:29]} Bg6 {[%emt 0:01:13]} 33. Kh2 {[%emt 0:00:48]} Kh8 {[%emt 0:00:43]} 34. Kg1 {[%emt 0:00:13]} Nh5 {[%emt 0:01:11]} 35. Bc2 {[%emt 0:00:56]} Nf6 {[%emt 0:03:12]} 36. Bxg6 {[%emt 0:00:31]} fxg6 {[%emt 0:00:05]} 37. Qd3 {[%emt 0:00:36]} g5 {[%emt 0:00:13]} 38. Rd1 {[%emt 0:00:51]} g4 {[%emt 0:00:41]} 39. hxg4 {[%emt 0:00:35]} Nxg4 {[%emt 0:00:10]} 40. Qf5 {[%emt 0:00:10]} Nf6 {[%emt 0:00:27]} 41. Qe6 {[%emt 0:09:57]} Ne4 {[%emt 0:18:41]} 42. Qf5 {[%emt 0:02:35]} Nf6 {[%emt 0:01:20]} 43. Qe6 {[%emt 0:00:00]} Qc7 {[%emt 0:05:47]} 44. Nc2 {[%emt 0:09:54]} Re8 {[%emt 0:02:00]} 45. Qf5 {[%emt 0:01:17]} Qc4 {[%emt 0:01:32]} 46. Ne3 {[%emt 0:00:20]} Qa4 {[%emt 0:01:32]} 47. Qg6 {[%emt 0:07:23]} Rf8 {[%emt 0:05:04]} 48. Rf1 {[%emt 0:00:00]} Qa7 {[%emt 0:00:39]} 49. Qd3 {[%emt 0:00:00]} b4 {[%emt 0:04:12]} 50. cxb4 {[%emt 0:00:00]} Qb7 {[%emt 0:00:17]} 51. b5 {[%emt 0:00:42]} Rb8 {[%emt 0:01:05]} 52. Rc1 {[%emt 0:00:00]} Qxb5 {[%emt 0:00:19]} 53. Rc8+ {[%emt 0:00:00]} Ng8 {[%emt 0:00:04]} 54. Qxb5 {[%emt 0:00:00]} Rxb5 {[%emt 0:00:03]} 55. Nf5 {[%emt 0:00:01]} Kh7 {[%emt 0:00:46]} 56. Rc7 {[%emt 0:03:21]} Nf6 {[%emt 0:03:45]} 57. Rxg7+ {[%emt 0:00:00]} Kh8 {[%emt 0:00:03]} 58. Rg6 {[%emt 0:00:00]} Nxd5 {[%emt 0:00:05]} 59. Rxh6+ {[%emt 0:00:00]} Kg8 {[%emt 0:00:03]} 60. Rxd6 {[%emt 0:00:00]} Nb6 {[%emt 0:00:03]} 61. Re6 {[%emt 0:03:02]} Nc4 {[%emt 0:00:43]} 62. Nd6 {[%emt 0:00:23]} Nxd6 {[%emt 0:00:08]} 63. Rxd6 {[%emt 0:00:02]} Rxb2 {[%emt 0:00:07]} 64. Rd5 {[%emt 0:00:32]} Rb1+ {[%emt 0:00:29]} 65. Kh2 {[%emt 0:00:02]} Re1 {[%emt 0:00:04]} 66. Rd7 {[%emt 0:00:43]} Kf8 {[%emt 0:04:47]} 67. Rd3 {[%emt 0:00:06]} Ra1 {[%emt 0:00:14]} 68. Re3 {[%emt 0:01:01]} Ra5 {[%emt 0:00:05]} 69. Kg3 {[%emt 0:00:12]} Kf7 {[%emt 0:00:04]} 70. Kg4 {[%emt 0:00:12]} Kg6 {[%emt 0:00:51]} 71. f3 {[%emt 0:00:26]} Kf6 {[%emt 0:00:03]} 72. Re4 {[%emt 0:00:43]} Ra2 {[%emt 0:00:25]} 73. g3 {[%emt 0:00:09]} Ra8 {[%emt 0:00:12]} 74. Rb4 {[%emt 0:00:25]} Rg8+ {[%emt 0:00:12]} 75. Kh3 {[%emt 0:00:07]} Rh8+ {[%emt 0:00:10]} 76. Kg2 {[%emt 0:00:02]} Ra8 {[%emt 0:00:13]} 77. Rb6+ {[%emt 0:01:16]} Kf7 {[%emt 0:03:32]} 78. g4 {[%emt 0:00:10]} Ra3 {[%emt 0:00:04]} 79. Kf2 {[%emt 0:00:38]} Rc3 {[%emt 0:00:28]} 80. Rb4 {[%emt 0:00:41]} Kf6 {[%emt 0:00:22]} 81. Re4 {[%emt 0:00:08]} Rc2+ {[%emt 0:00:15]} 82. Kg3 {[%emt 0:00:03]} Rc3 {[%emt 0:00:16]} 83. Kf2 {[%emt 0:00:08]} Rc2+ {[%emt 0:00:10]} 84. Re2 {[%emt 0:00:02]} Rc1 {[%emt 0:00:22]} 85. Re3 {[%emt 0:00:08]} Rc2+ {[%emt 0:00:05]} 86. Kg3 {[%emt 0:00:06]} Rc1 {[%emt 0:00:36]} 87. Rb3 {[%emt 0:00:29]} Rg1+ {[%emt 0:00:29]} 88. Kf2 {[%emt 0:00:08]} Ra1 {[%emt 0:00:07]} 89. Rb6+ {[%emt 0:00:51]} Kf7 {[%emt 0:00:36]} 90. Ke3 {[%emt 0:00:59]} Re1+ {[%emt 0:00:33]} 91. Kf2 {[%emt 0:00:06]} Ra1 {[%emt 0:00:03]} 92. Rh6 {[%emt 0:00:13]} Rb1 {[%emt 0:00:29]} 93. Rh5 {[%emt 0:00:22]} Ke6 {[%emt 0:04:03]} 94. Rf5 {[%emt 0:02:00]} Rb3 {[%emt 0:00:00]} 95. Kg2 {[%emt 0:00:56]} Ra3 {[%emt 0:00:00]} 96. Rf8 {[%emt 0:00:42]} Ke7 {[%emt 0:00:00]} 97. Rh8 {[%emt 0:00:56]} Kf7 {[%emt 0:00:00]} 98. Rh6 {[%emt 0:00:17]} Rb3 {[%emt 0:01:16]} 99. Kf2 {[%emt 0:00:21]} Ra3 {[%emt 0:00:15]} 100. Ke2 {[%emt 0:00:29]} Rb3 {[%emt 0:00:13]} 101. Rd6 {[%emt 0:00:29]} Ke7 {[%emt 0:01:24]} 102. Rd3 {[%emt 0:00:34]} Rb1 {[%emt 0:00:25]} 103. Ke3 {[%emt 0:02:24]} Re1+ {[%emt 0:00:31]} 104. Kf2 {[%emt 0:00:12]} Ra1 {[%emt 0:00:04]} 105. Kg3 {[%emt 0:00:22]} Kf6 {[%emt 0:00:17]} 106. Rd8 {[%emt 0:01:06]} Rg1+ {[%emt 0:00:10]} 107. Kf2 {[%emt 0:00:13]} Ra1 {[%emt 0:00:03]} 108. Rf8+ {[%emt 0:00:40]} Ke7 {[%emt 0:00:23]} 109. Rf5 {[%emt 0:00:12]} Ke6 {[%emt 0:00:14]} 110. Kg3 {[%emt 0:01:20]} Rh1 {[%emt 0:01:09]} 111. f4 {[%emt 0:00:32]} exf4+ {[%emt 0:01:05]} 112. Rxf4 {[%emt 0:00:16]} Rh7 {[%emt 0:00:46]} 113. g5 {[%emt 0:02:08]} Rf7 {[%emt 0:00:17]} 114. Rf6+ {[%emt 0:00:36]} Rxf6 {[%emt 0:00:05]} 115. gxf6 {[%emt 0:00:02]} Kxf6 {[%emt 0:00:06]} 1/2-1/2

[Event "44th Chess Olympiad Open 2022"]
[Site "Chennai"]
[Date "2022.08.09"]
[Round "11.27"]
[White "Kurniawan, Muhamad Agus"]
[Black "Mehdi Hasan Parag"]
[Result "1-0"]
[ECO "C77"]
[WhiteElo "2328"]
[BlackElo "2227"]
[Annotator "RC"]
[PlyCount "83"]
[EventDate "2022.07.29"]
[EventType "team-tourn"]
[EventCountry "IND"]
[SourceTitle "playchess.com"]
[Source "ChessBase"]
[SourceQuality "1"]
[WhiteTeam "Indonesia"]
[BlackTeam "Bangladesh"]
[WhiteTeamCountry "INA"]
[BlackTeamCountry "BAN"]
[TimeControl "40/5400+30:1800+30"]

1. e4 {[%emt 0:00:03]} e5 {[%emt 0:00:09]} 2. Nf3 {[%emt 0:00:14]} Nc6 {[%emt 0:00:03]} 3. Bb5 {[%emt 0:00:46]} a6 {[%emt 0:00:05]} 4. Ba4 {[%emt 0:00:17]} Nf6 {[%emt 0:00:06]} 5. O-O {[%emt 0:00:27]} Be7 {[%emt 0:00:10]} 6. d3 {[%emt 0:01:03]} b5 {[%emt 0:00:22]} 7. Bb3 {[%emt 0:00:02]} O-O {[%emt 0:01:11]} 8. Nc3 {[%emt 0:01:10]} d6 {[%emt 0:00:38]} 9. a3 {[%emt 0:00:20]} h6 {[%emt 0:00:46]} 10. Nd5 {[%emt 0:02:58]} Rb8 {[%emt 0:01:58]} 11. Be3 {[%emt 0:05:03]} Re8 {[%emt 0:03:36]} 12. h3 {[%emt 0:04:06]} Be6 {[%emt 0:00:48]} 13. Qd2 {[%emt 0:00:39]} Bf8 {[%emt 0:00:41]} 14. Ba2 {[%emt 0:17:16]} Bxd5 {[%emt 0:01:31]} 15. exd5 {[%emt 0:00:23]} Ne7 {[%emt 0:01:22]} 16. c4 {[%emt 0:00:02]} Ng6 {[%emt 0:03:46]} 17. Qa5 {[%emt 0:11:54]} c5 {[%emt 0:04:06]} 18. Qxa6 {[%emt 0:09:43]} b4 {[%emt 0:03:19]} 19. axb4 {[%emt 0:02:38]} Rxb4 {[%emt 0:02:15]} 20. Qa3 {[%emt 0:03:44]} Qb8 {[%emt 0:04:19]} 21. Nd2 {[%emt 0:05:14]} Nh5 {[%emt 0:09:07]} 22. Bb3 {[%emt 0:03:44]} f5 {[%emt 0:01:03]} 23. Bd1 {[%emt 0:00:12]} Nf6 {[%emt 0:01:26]} 24. Nb3 {[%emt 0:00:54]} Rb7 {[%emt 0:03:51]} 25. Na5 {[%emt 0:00:57]} Ra7 {[%emt 0:10:05]} 26. Qc3 {[%emt 0:00:07]} Qc7 {[%emt 0:05:17]} 27. Ra3 {[%emt 0:00:56]} f4 {[%emt 0:05:04]} 28. Bd2 {[%emt 0:03:23]} e4 {[%emt 0:02:17]} 29. Re1 {[%emt 0:02:50]} f3 {[%emt 0:03:26]} 30. gxf3 {[%emt 0:09:18]} exf3 {[%emt 0:04:11]} 31. Rxe8 {[%emt 0:00:24]} Nxe8 {[%emt 0:00:06]} 32. Bxf3 {[%emt 0:00:06]} Ne5 {[%emt 0:05:01]} 33. Bg2 {[%emt 0:00:30]} Qf7 {[%emt 0:03:28]} 34. d4 {[%emt 0:00:53]} cxd4 {[%emt 0:01:46]} 35. Qxd4 {[%emt 0:00:10]} g5 {[%emt 0:02:33]} 36. f4 {[%emt 0:01:00]} Ng6 {[%emt 0:03:07]} 37. fxg5 {[%emt 0:01:29]} Bg7 {[%emt 0:00:43]} 38. Qg4 {[%emt 0:02:17]} hxg5 {[%emt 0:03:27]} 39. Nc6 {[%emt 0:02:14]} Rxa3 {[%emt 0:04:47]} 40. bxa3 {[%emt 0:00:02]} Nf4 {[%emt 0:01:38]} 41. Bxf4 {[%emt 0:34:14]} Qxf4 {[%emt 0:34:05]} 42. Ne7+ {[%emt 0:06:35]} 1-0

[Event "44th Chess Olympiad Open 2022"]
[Site "Chennai"]
[Date "2022.08.09"]
[Round "11.27"]
[White "Zia, Tahsin Tajwar"]
[Black "Ervan, Mohamad"]
[Result "0-1"]
[ECO "D00"]
[WhiteElo "2307"]
[BlackElo "2402"]
[Annotator "RC"]
[PlyCount "140"]
[EventDate "2022.07.29"]
[EventType "team-tourn"]
[EventCountry "IND"]
[SourceTitle "playchess.com"]
[Source "ChessBase"]
[SourceQuality "1"]
[WhiteTeam "Bangladesh"]
[BlackTeam "Indonesia"]
[WhiteTeamCountry "BAN"]
[BlackTeamCountry "INA"]
[TimeControl "40/5400+30:1800+30"]

1. d4 {[%emt 0:00:05]} Nf6 {[%emt 0:00:15]} 2. Nc3 {[%emt 0:00:56]} d5 {[%emt 0:01:11]} 3. Bf4 {[%emt 0:00:08]} a6 {[%emt 0:02:43]} 4. e3 {[%emt 0:00:21]} Bf5 {[%emt 0:02:17]} 5. Nf3 {[%emt 0:00:38]} e6 {[%emt 0:00:36]} 6. Ne5 {[%emt 0:01:44]} h6 {[%emt 0:06:15]} 7. Bd3 {[%emt 0:01:30]} Bxd3 {[%emt 0:02:34]} 8. cxd3 {[%emt 0:00:25]} Nbd7 {[%emt 0:00:59]} 9. O-O {[%emt 0:01:16]} Nxe5 {[%emt 0:01:23]} 10. Bxe5 {[%emt 0:02:06]} Bd6 {[%emt 0:03:01]} 11. e4 {[%emt 0:05:02]} dxe4 {[%emt 0:00:58]} 12. Bxf6 {[%emt 0:02:46]} Qxf6 {[%emt 0:03:38]} 13. dxe4 {[%emt 0:00:26]} Qd8 {[%emt 0:05:56]} 14. Qg4 {[%emt 0:14:45]} Qg5 {[%emt 0:04:41]} 15. Qe2 {[%emt 0:13:55]} O-O {[%emt 0:06:09]} 16. e5 {[%emt 0:04:53]} Bb4 {[%emt 0:03:02]} 17. Qc4 {[%emt 0:09:56]} Qe7 {[%emt 0:03:05]} 18. Ne4 {[%emt 0:03:04]} Rfd8 {[%emt 0:03:05]} 19. Rad1 {[%emt 0:01:11]} Ba5 {[%emt 0:01:47]} 20. a3 {[%emt 0:08:22]} b5 {[%emt 0:02:38]} 21. Qc1 {[%emt 0:05:02]} Qh4 {[%emt 0:03:56]} 22. Qe3 {[%emt 0:00:45]} Bb6 {[%emt 0:00:23]} 23. Rd3 {[%emt 0:02:19]} Rd7 {[%emt 0:02:09]} 24. Rfd1 {[%emt 0:00:51]} Rad8 {[%emt 0:00:24]} 25. h3 {[%emt 0:05:39]} Rd5 {[%emt 0:03:00]} 26. Nc5 {[%emt 0:08:41]} a5 {[%emt 0:01:43]} 27. b4 {[%emt 0:01:58]} axb4 {[%emt 0:00:35]} 28. axb4 {[%emt 0:00:06]} Bxc5 {[%emt 0:01:05]} 29. bxc5 {[%emt 0:00:17]} Ra8 {[%emt 0:00:22]} 30. Kh2 {[%emt 0:03:23]} Ra4 {[%emt 0:01:34]} 31. g3 {[%emt 0:00:57]} Qd8 {[%emt 0:01:41]} 32. h4 {[%emt 0:00:06]} Ra2 {[%emt 0:01:36]} 33. R1d2 {[%emt 0:01:07]} Ra1 {[%emt 0:00:28]} 34. Qf3 {[%emt 0:00:51]} Qa8 {[%emt 0:01:23]} 35. Rd1 {[%emt 0:01:30]} Ra4 {[%emt 0:00:27]} 36. h5 {[%emt 0:00:44]} Ra2 {[%emt 0:04:10]} 37. R1d2 {[%emt 0:00:30]} Ra4 {[%emt 0:05:32]} 38. Rd1 {[%emt 0:00:35]} Qd8 {[%emt 0:01:02]} 39. Qe3 {[%emt 0:00:26]} Ra2 {[%emt 0:09:37]} 40. Kg2 {[%emt 0:00:32]} Qa8 {[%emt 0:00:55]} 41. Kh2 {[%emt 0:01:52]} Rd8 {[%emt 0:00:58]} 42. Qf3 {[%emt 0:09:45]} Qxf3 {[%emt 0:00:51]} 43. Rxf3 {[%emt 0:00:06]} c6 {[%emt 0:01:02]} 44. Kg2 {[%emt 0:00:36]} Kf8 {[%emt 0:00:59]} 45. Rfd3 {[%emt 0:00:33]} Ke7 {[%emt 0:00:35]} 46. Kf3 {[%emt 0:00:25]} Rda8 {[%emt 0:01:33]} 47. g4 {[%emt 0:05:17]} Kd7 {[%emt 0:00:51]} 48. Rg1 {[%emt 0:02:16]} Rc2 {[%emt 0:00:31]} 49. Kg3 {[%emt 0:01:48]} Raa2 {[%emt 0:00:15]} 50. f3 {[%emt 0:00:44]} Kc7 {[%emt 0:00:08]} 51. Kf4 {[%emt 0:00:48]} Rh2 {[%emt 0:00:10]} 52. Rdd1 {[%emt 0:02:15]} Kb7 {[%emt 0:01:55]} 53. Ra1 {[%emt 0:00:34]} Rad2 {[%emt 0:20:18]} 54. Rgd1 {[%emt 0:01:56]} Rxd1 {[%emt 0:02:23]} 55. Rxd1 {[%emt 0:00:02]} Ra2 {[%emt 0:00:10]} 56. g5 {[%emt 0:01:53]} Rh2 {[%emt 0:02:17]} 57. gxh6 {[%emt 0:01:22]} gxh6 {[%emt 0:00:24]} 58. Kg4 {[%emt 0:02:19]} Ra2 {[%emt 0:00:38]} 59. f4 {[%emt 0:00:07]} Ka6 {[%emt 0:00:35]} 60. f5 {[%emt 0:00:27]} b4 {[%emt 0:00:38]} 61. fxe6 {[%emt 0:01:35]} fxe6 {[%emt 0:00:02]} 62. Kf4 {[%emt 0:00:59]} Kb5 {[%emt 0:00:16]} 63. Ke4 {[%emt 0:00:15]} b3 {[%emt 0:00:30]} 64. Kd3 {[%emt 0:00:17]} Rh2 {[%emt 0:01:06]} 65. Rg1 {[%emt 0:01:32]} Rh3+ {[%emt 0:04:07]} 66. Kd2 {[%emt 0:00:00]} Kc4 {[%emt 0:00:11]} 67. Rg6 {[%emt 0:00:01]} Rh2+ {[%emt 0:00:11]} 68. Kc1 {[%emt 0:00:10]} Rxh5 {[%emt 0:00:09]} 69. Kb2 {[%emt 0:00:56]} Rh2+ {[%emt 0:00:09]} 70. Kb1 {[%emt 0:00:05]} h5 {[%emt 0:00:13]} 0-1

[Event "44th Chess Olympiad Open 2022"]
[Site "Chennai"]
[Date "2022.08.09"]
[Round "11.28"]
[White "Bachmann, Axel"]
[Black "Zaibi, Amir"]
[Result "1-0"]
[ECO "A35"]
[WhiteElo "2588"]
[BlackElo "2398"]
[Annotator "TA"]
[PlyCount "93"]
[EventDate "2022.07.29"]
[EventType "team-tourn"]
[EventCountry "IND"]
[SourceTitle "playchess.com"]
[Source "ChessBase"]
[SourceQuality "1"]
[WhiteTeam "Paraguay"]
[BlackTeam "Tunisia"]
[WhiteTeamCountry "PAR"]
[BlackTeamCountry "TUN"]
[TimeControl "40/5400+30:1800+30"]

{[%evp 13,93,39,58,38,28,47,43,55,103,96,137,151,147,151,164,146,409,397,395,405,395,393,387,356,339,233,284,293,343,297,290,0,196,141,141,141,324,308,317,296,300,261,247,217,336,306,432,446,417,376,508,487,443,345,5698,5402,1683,1388,12835,12835,12836,12836,12837,12837,6616,12156,12839,12839,12840,12840,12841,12841,12841,12842,12842,12843,12843,12843,12844,12844,12845,12844]} 1. Nf3 {[%emt 0:00:04]} c5 {[%emt 0:00:55]} 2. c4 {[%emt 0:00:19]} Nc6 {[%emt 0:00:07]} 3. Nc3 {[%emt 0:00:22]} g6 {[%emt 0:00:38]} 4. e3 {[%emt 0:03:00]} d6 {[%emt 0:06:15]} 5. d4 {[%emt 0:00:33]} Bg4 {[%emt 0:02:20]} 6. Be2 {[%emt 0:03:51]} Bg7 {[%emt 0:05:08]} 7. d5 {[%emt 0:03:24]} Na5 {[%emt 0:07:06] was the old line (7...Bxf3).} 8. e4 $5 {[%emt 0:10:08][%mdl 4] Leaves trodden paths. A35: Symmetrical English: 2 Nc3 Nc6 3 Nf3.} Bxc3+ {[%emt 0:07:14]} 9. bxc3 {[%emt 0:00:21]} Nf6 {[%emt 0:00:03]} 10. Qa4+ {[%emt 0:16:49] [#] White is slightly better.} Nd7 $146 {[%emt 0:12:31]} (10... Bd7 $14 11. Qc2 e5) ({Predecessor:} 10... Bd7 11. Qc2 Bg4 12. h3 Bxf3 13. Bxf3 O-O 14. Be2 Re8 15. O-O Nd7 16. f4 e6 {1-0 (62) Khotenashvili,B (2524)-Rapport,J (2352) Warsaw 2013}) 11. Bh6 $16 {[%emt 0:02:58] White is more active.} Qb6 {[%emt 0:08:00] [#] Against Rb1} 12. Ne5 $1 {[%emt 0:06:46][%mdl 512]} dxe5 {[%emt 0:23:08]} (12... Qb2 $2 13. Bxg4 $1 Qxa1+ 14. Ke2 Qb2+ 15. Kd3 $18) 13. Bxg4 {[%emt 0:00:10][%csl Gg4][%cal Ra4d7]} O-O-O {[%emt 0:00:05]} 14. O-O $36 {[%emt 0:05:04][%mdl 2048] White is in control.} Rhg8 $2 {[%emt 0:02:59][%mdl 8192]} (14... Qa6 $16 {might work better.}) 15. Rab1 $18 {[%emt 0:03:00]} Qa6 {[%emt 0:05:33]} 16. Rb5 {[%emt 0:00:35]} b6 {[%emt 0:00:09]} 17. f4 {[%emt 0:09:51]} exf4 {[%emt 0:01:21]} 18. Bxf4 {[%emt 0:03:00] This bishop pair is nice.} h5 {[%emt 0:00:50]} 19. Be2 {[%emt 0:02:36]} f6 {[%emt 0:02:00]} 20. Rfb1 {[%emt 0:01:21][%cal Ob5a5,Bf1b1,Bb1b5,Bb5c5][%mdl 32] Strongly threatening Rxa5!} Ne5 {[%emt 0:00:57]} 21. Be3 {[%emt 0:01:41][%cal Oe3c5] Bxc5! is the strong threat.} Nd7 {[%emt 0:01:13]} 22. Bf4 {[%emt 0:10:57][%cal Ob5a5,Be3f4,Bf4g3,Bg3f2,Bf2d4][%mdl 32]} Ne5 {[%emt 0:00:01]} 23. Rxc5+ {[%emt 0:02:20]} bxc5 $16 {[%emt 0:00:24]} 24. Rb5 {[%emt 0:00:04]} Rd7 $2 {[%emt 0:05:40]} (24... Qb6 $16 25. Rxb6 axb6) 25. Rxc5+ {[%emt 0:04:13]} (25. Qxa5 Qxa5 26. Rxa5 Rc7 $11) (25. Rxa5 Qb6 $16) 25... Rc7 {[%emt 0:00:39]} 26. Rb5 {[%emt 0:00:52]} (26. Rxa5 Qb6+ 27. Kf1 (27. c5 Rxc5 28. Rxc5+ Qxc5+ 29. Qd4 Qb6 $15) 27... Qb1+ 28. Kf2 Qxe4 29. Bxe5 fxe5 $11) 26... g5 {[%emt 0:02:27] [#]} 27. Bg3 {[%emt 0:05:57]} (27. Bxe5 fxe5 28. Qxa5 (28. Rxa5 Qb6+ 29. Kh1 Qb1+ 30. Qd1 Qxd1+ 31. Bxd1 Rf8 $17) 28... Qxa5 29. Rxa5 Rb7 $16) 27... Rb7 {[%emt 0:01:45] Threatens to win with ...Rxb5.} 28. c5 {[%emt 0:00:00] And now c4 would win. Chess con chili.} ({Weaker is} 28. Qxa5 Qxa5 29. Rxa5 Rb2 30. Bxh5 (30. Rxa7 $2 Kb8 $19) 30... Kb7 $14) 28... h4 {[%emt 0:04:02]} (28... Rxb5 $142 29. Bxb5 Qb7) 29. Bf2 $18 {[%emt 0:00:00]} ({Less strong is} 29. Bxe5 fxe5 30. Qxa5 Qxa5 31. Rxa5 Rb2 $16) 29... Rxb5 {[%emt 0:01:02]} (29... Rh8 $142 30. Bf1 Rxb5 31. Bxb5 Qb7) 30. Bxb5 {[%emt 0:00:00]} Qb7 {[%emt 0:00:02]} 31. Qxa5 {[%emt 0:00:00] Black must now prevent Ba6.} Kb8 {[%emt 0:00:23]} 32. Bd4 {[%emt 0:00:37]} Qc7 {[%emt 0:00:43]} 33. Qb4 {[%emt 0:00:14]} h3 $2 {[%emt 0:00:39]} (33... Rd8 34. h3 a5) 34. Ba6+ {[%emt 0:02:25] White is clearly winning.} Ka8 {[%emt 0:00:00]} 35. c6 {[%emt 0:00:05]} Rb8 {[%emt 0:00:08]} 36. Bb7+ {[%emt 0:00:14]} Rxb7 {[%emt 0:00:03]} 37. Qxb7+ {[%emt 0:00:09]} Qxb7 {[%emt 0:00:07]} 38. cxb7+ {[%emt 0:00:06]} Kxb7 {[%emt 0:00:02]} 39. Bxe5 {[%emt 0:00:13]} fxe5 {[%emt 0:00:04]} 40. gxh3 {[%emt 0:00:09][%mdl 4096] Endgame KP-KP} Kb6 {[%emt 0:01:06]} 41. Kf2 {[%emt 0:30:06]} Kc5 {[%emt 0:30:03]} 42. Kg3 {[%emt 0:00:22]} Kc4 {[%emt 0:00:10]} 43. Kg4 {[%emt 0:00:05]} Kd3 {[%emt 0:00:10]} 44. Kf5 {[%emt 0:00:05]} a5 {[%emt 0:00:14]} 45. Kxe5 {[%emt 0:00:38]} a4 {[%emt 0:00:08]} 46. Ke6 {[%emt 0:00:15]} Kxe4 {[%emt 0:00:22]} 47. c4 {[%emt 0:03:59] Weighted Error Value: White=0.23 (precise) /Black=0.36} 1-0

[Event "44th Chess Olympiad Open 2022"]
[Site "Chennai"]
[Date "2022.08.09"]
[Round "11.28"]
[White "Cubas, Jose Fernando"]
[Black "Amdouni, Zoubaier"]
[Result "0-1"]
[ECO "B23"]
[WhiteElo "2451"]
[BlackElo "2224"]
[Annotator "RC"]
[PlyCount "90"]
[EventDate "2022.07.29"]
[EventType "team-tourn"]
[EventCountry "IND"]
[SourceTitle "playchess.com"]
[Source "ChessBase"]
[SourceQuality "1"]
[WhiteTeam "Paraguay"]
[BlackTeam "Tunisia"]
[WhiteTeamCountry "PAR"]
[BlackTeamCountry "TUN"]
[TimeControl "40/5400+30:1800+30"]

1. e4 {[%emt 0:00:03]} c5 {[%emt 0:00:24]} 2. Nc3 {[%emt 0:00:45]} Nc6 {[%emt 0:00:55]} 3. Bb5 {[%emt 0:00:07]} Nd4 {[%emt 0:00:24]} 4. Nf3 {[%emt 0:00:08]} a6 {[%emt 0:01:54]} 5. Bd3 {[%emt 0:00:19]} Nc6 {[%emt 0:00:11]} 6. Be2 {[%emt 0:01:48]} e5 {[%emt 0:09:45]} 7. Nd5 {[%emt 0:04:50]} Nf6 {[%emt 0:02:12]} 8. Bc4 {[%emt 0:12:10]} b5 {[%emt 0:07:09]} 9. Nxf6+ {[%emt 0:00:12]} Qxf6 {[%emt 0:00:29]} 10. Bd5 {[%emt 0:00:05]} Rb8 {[%emt 0:03:32]} 11. c3 {[%emt 0:03:57]} h6 {[%emt 0:19:10]} 12. O-O {[%emt 0:03:07]} Ne7 {[%emt 0:04:01]} 13. d4 {[%emt 0:05:51]} d6 {[%emt 0:01:18]} 14. h3 {[%emt 0:05:01]} Nxd5 {[%emt 0:05:01]} 15. exd5 {[%emt 0:00:08]} exd4 {[%emt 0:00:31]} 16. cxd4 {[%emt 0:04:27]} c4 {[%emt 0:00:19]} 17. a4 {[%emt 0:19:38]} Be7 {[%emt 0:01:42]} 18. axb5 {[%emt 0:00:05]} axb5 {[%emt 0:00:10]} 19. b3 {[%emt 0:00:21]} O-O {[%emt 0:04:31]} 20. Re1 {[%emt 0:02:10]} Rb7 {[%emt 0:15:24]} 21. bxc4 {[%emt 0:02:54]} bxc4 {[%emt 0:00:05]} 22. Qe2 {[%emt 0:00:57]} Rc7 {[%emt 0:00:51]} 23. Bd2 {[%emt 0:12:41]} Bf5 {[%emt 0:01:43]} 24. Ba5 {[%emt 0:04:52]} Bd3 {[%emt 0:01:01]} 25. Qe3 {[%emt 0:00:39]} Rb7 {[%emt 0:04:51]} 26. Rec1 {[%emt 0:00:53]} Qf5 {[%emt 0:00:26]} 27. Bd2 {[%emt 0:02:05]} Qxd5 {[%emt 0:01:07]} 28. Ra5 {[%emt 0:00:05]} Qe6 {[%emt 0:00:18]} 29. d5 {[%emt 0:00:21]} Qxe3 {[%emt 0:03:16]} 30. Bxe3 {[%emt 0:00:02]} Bf6 {[%emt 0:00:47]} 31. Bd4 {[%emt 0:08:56]} Bxd4 {[%emt 0:03:01]} 32. Nxd4 {[%emt 0:00:01]} Rfb8 {[%emt 0:00:15]} 33. Raa1 {[%emt 0:01:20]} Rb2 {[%emt 0:03:03]} 34. Nc6 {[%emt 0:01:27]} Re8 {[%emt 0:04:05]} 35. Na5 {[%emt 0:00:12]} Re4 {[%emt 0:00:31]} 36. Ra4 {[%emt 0:00:47]} Rb5 {[%emt 0:00:35]} 37. f3 {[%emt 0:01:14]} Re2 {[%emt 0:01:44]} 38. Nxc4 {[%emt 0:00:07]} Rxd5 {[%emt 0:02:11]} 39. Nb6 {[%emt 0:00:01]} Rb5 {[%emt 0:00:22]} 40. Rd4 {[%emt 0:00:01]} Rxb6 {[%emt 0:00:17]} 41. Rxd3 {[%emt 0:30:15]} Rbb2 {[%emt 0:30:40]} 42. g4 {[%emt 0:00:51]} Rg2+ {[%emt 0:00:00]} 43. Kf1 {[%emt 0:00:00]} Rbf2+ {[%emt 0:00:00]} 44. Ke1 {[%emt 0:00:00]} Rh2 {[%emt 0:00:00]} 45. Rc6 {[%emt 0:00:00]} Ra2 {[%emt 0:00:00]} 0-1